bitfinex/quotes_ETHUSD_20241204
["timestamp","ask_amount","ask_price","bid_price","bid_amount"]
[1733343946197,74.72696921,3888.0,3887.9,22.378663]
[1733343946369,74.72696921,3888.0,3887.7,3.0]
[1733343946621,1.6356,3887.9,3886.3,2.5731]
[1733343946939,4.20478514,3887.9,3886.4,0.02571936]
[1733343947146,1.6356,3887.8,3886.6,2.57288]
[1733343947312,1.6356,3887.8,3886.6,2.57292]
[1733343947512,1.6356,3887.8,3885.6,0.0257211]
[1733343947728,1.6356,3887.8,3886.3,2.57307]
[1733343948044,1.6356,3887.8,3885.4,2.5737]
[1733343948045,1.5577,3887.6,3885.8,0.02572098]
[1733343948200,1.5577,3887.6,3886.9,2.57272]
[1733343948603,1.5577,3887.6,3886.6,2.5729]
[1733343948904,1.54484,3887.6,3886.5,2.57298]
[1733343949138,1.54484,3887.6,3885.2,0.0167]
[1733343949309,0.19020626,3887.5,3885.3,2.59946578]
[1733343949644,0.1,3887.3,3885.3,0.02572578]
[1733343949846,2.7949074,3887.9,3886.1,2.57326]
[1733343950154,0.1,3887.3,3885.6,0.02572712]
[1733343950439,0.1,3887.4,3886.3,2.57313]
[1733343950642,2.5949074,3887.9,3885.3,2.5738]
[1733343950943,2.56918514,3887.9,3886.5,2.57295]
[1733343951147,0.1,3887.5,3886.2,2.57314]
[1733343951351,0.1,3887.3,3885.9,2.57339]
[1733343951504,0.1,3887.3,3885.3,0.02572851]
[1733343951704,0.1,3887.3,3886.1,2.57326]
[1733343952006,1.6502,3887.2,3886.2,0.02572844]
[1733343952209,1.6502,3887.2,3887.0,2.57266]
[1733343952558,76.37716921,3888.0,3887.8,2.57209]
[1733343952905,74.72696921,3888.0,3887.8,2.57209]
[1733343955723,1.5596,3887.9,3886.8,2.57274]
[1733343956045,74.72696921,3888.0,3887.9,0.5667]
[1733343956046,67.01090921,3888.0,3887.9,0.5667]
[1733343956216,64.43888921,3888.0,3887.9,31.025631]
[1733343956546,63.64874544,3888.0,3887.9,31.025631]
[1733343956704,63.64874544,3888.0,3887.9,33.597711]
[1733343957106,59.79071544,3888.0,3887.9,36.91242983]
[1733343958008,58.50470544,3888.0,3887.9,36.91242983]
[1733343958202,55.93268544,3888.0,3887.9,36.91242983]
[1733343959636,52.07465544,3888.0,3887.9,36.91242983]
[1733343960023,50.78864544,3888.0,3887.9,36.597711]
[1733343960225,48.21662544,3888.0,3887.9,36.597711]
[1733343960528,48.21662544,3888.0,3887.9,37.11731891]
[1733343960755,47.53262544,3888.0,3887.9,38.57679056]
[1733343960963,47.53262544,3888.0,3887.9,37.96468916]
[1733343961261,43.67492544,3888.0,3887.9,37.53203774]
[1733343962131,41.10290544,3888.0,3887.9,37.43203774]
[1733343962332,38.53088544,3888.0,3887.9,37.43203774]
[1733343962572,38.53088544,3888.0,3887.9,37.53203774]
[1733343962785,38.53088544,3888.0,3887.9,37.43203774]
[1733343962932,38.53088544,3888.0,3887.9,33.56731891]
[1733343963134,34.67285544,3888.0,3887.9,33.56731891]
[1733343963343,32.10083544,3888.0,3887.9,33.56731891]
[1733343964162,25.67078544,3888.0,3887.9,36.56731891]
[1733343964733,25.67078544,3888.0,3887.9,36.047711]
[1733343964971,25.67078544,3888.0,3887.9,36.031011]
[1733343965176,20.52674544,3888.0,3887.9,36.031011]
[1733343965506,19.24073544,3888.0,3887.9,36.031011]
[1733343966142,12.81068544,3888.0,3887.9,36.581011]
[1733343966848,12.81068544,3888.0,3887.9,36.031011]
[1733343967233,12.81068544,3888.0,3887.9,14.56308]
[1733343968051,11.52467544,3888.0,3887.9,36.031011]
[1733343968358,6.38063544,3888.0,3887.9,36.581011]
[1733343969052,5.09462544,3888.0,3887.9,36.581011]
[1733343969253,2.52260544,3888.0,3887.9,36.581011]
[1733343969979,2.52260544,3888.0,3887.9,36.031011]
[1733343970408,1.23659544,3888.0,3887.9,36.031011]
[1733343970689,5.44e-06,3888.0,3887.9,36.031011]
[1733343974495,5.44e-06,3888.0,3887.9,37.68296382]
[1733343974650,5.44e-06,3888.0,3887.9,36.838211]
[1733343974850,5.44e-06,3888.0,3887.9,36.031011]
[1733343975387,5.44e-06,3888.0,3887.9,21.467931]
[1733343975697,5.44e-06,3888.0,3887.3,1.2862]
[1733343975881,1.6086,3887.9,3887.4,0.02571435]
[1733343976049,1.6086,3887.9,3887.5,21.467931]
[1733343976250,1.6086,3887.9,3886.9,1.28635]
[1733343976588,1.6086,3887.9,3887.7,1.28609]
[1733343976751,1.6086,3887.9,3887.8,16.57525]
[1733343977153,1.6086,3887.9,3887.5,1.28616]
[1733343977154,1.6086,3887.9,3887.6,1.28612]
[1733343977467,1.6086,3887.9,3886.8,0.52245299]
[1733343977468,1.6086,3887.9,3887.1,1.28627]
[1733343977857,1.6086,3887.9,3887.2,1.28626]
[1733343978315,1.6086,3887.9,3886.8,0.02571863]
[1733343978316,1.6086,3887.9,3886.8,1.31209863]
[1733343978470,1.6086,3887.9,3887.4,1.2862]
[1733343978865,1.6086,3887.9,3887.1,1.2863]
[1733343979123,1.6086,3887.9,3887.1,1.31201843]
[1733343979419,1.6086,3887.9,3887.3,1.28622]
[1733343979582,1.6086,3887.9,3886.7,0.52399324]
[1733343979583,1.76946054,3887.9,3886.8,0.02571728]
[1733343979788,1.76946054,3887.9,3886.5,1.28649]
[1733343980091,1.76946054,3887.9,3886.6,0.02571969]
[1733343980528,1.76946054,3887.9,3886.4,0.02571969]
[1733343980711,1.76946054,3887.9,3886.2,1.28657]
[1733343980910,5.44e-06,3888.0,3885.5,0.0167]
[1733343980911,1.6055,3887.7,3886.5,1.28649]
[1733343981113,1.6055,3887.7,3886.6,0.02572239]
[1733343981346,1.8055,3887.7,3886.0,0.02572169]
[1733343981530,1.63122226,3887.6,3885.5,0.02572169]
[1733343981727,0.1769466,3887.8,3885.4,0.02572555]
[1733343981728,1.8055,3887.2,3885.4,0.02572555]
[1733343981898,1.6055,3887.0,3885.4,0.02572555]
[1733343982102,1.6055,3887.0,3885.0,1.28699]
[1733343982311,1.3094041,3887.0,3885.5,1.28683]
[1733343982646,1.3094041,3887.0,3885.3,1.28689]
[1733343982800,1.3094041,3887.0,3885.3,0.02572917]
[1733343983003,0.17899541,3886.9,3885.3,1.31258917]
[1733343983227,0.3,3887.1,3885.3,0.02572917]
[1733343983598,0.10000544,3888.0,3884.7,1.2871]
[1733343983799,5.44e-06,3888.0,3885.4,1.28686]
[1733343984012,5.44e-06,3888.0,3885.9,1.28668]
[1733343984216,5.44e-06,3888.0,3886.0,3.02571983]
[1733343984437,5.44e-06,3888.0,3886.0,0.02571983]
[1733343984598,5.44e-06,3888.0,3887.0,1.28632]
[1733343984799,5.44e-06,3888.0,3887.1,0.02571858]
[1733343985026,5.44e-06,3888.0,3887.2,1.28627]
[1733343985242,5.44e-06,3888.0,3887.3,0.02571661]
[1733343985546,1.5945,3887.9,3887.3,0.02571661]
[1733343985701,1.5945,3887.9,3887.8,1.28607]
[1733343985903,1.5945,3887.9,3887.8,4.28607]
[1733343986112,1.5945,3887.9,3887.8,22.77971832]
[1733343986310,1.5945,3887.9,3887.8,22.754001]
[1733343986547,1.5945,3887.9,3887.8,25.754001]
[1733343986701,5.44e-06,3888.0,3887.8,25.754001]
[1733343986702,5.44e-06,3888.0,3887.9,3.84232009]
[1733343986903,5.44e-06,3888.0,3887.9,24.49364368]
[1733343987116,5.44e-06,3888.0,3887.9,34.746971]
[1733343987704,5.44e-06,3888.0,3887.9,35.296971]
[1733343988126,5.44e-06,3888.0,3887.9,35.609671]
[1733343988758,5.44e-06,3888.0,3887.9,35.91899027]
[1733343989318,5.44e-06,3888.0,3887.9,35.609671]
[1733343990918,5.44e-06,3888.0,3887.9,34.746971]
[1733343991119,1.66590544,3888.0,3887.9,16.032241]
[1733343991363,1.83249598,3888.0,3887.0,0.52450918]
[1733343991665,0.16659598,3888.0,3886.4,1.31221754]
[1733343991816,1.6659,3887.9,3886.5,1.28649]
[1733343992023,1.8659,3887.9,3886.4,1.31224754]
[1733343992517,1.8659,3887.9,3886.5,1.28647]
[1733343992720,1.8659,3887.9,3885.4,0.2572]
[1733343992721,1.6659,3887.9,3886.6,0.02572201]
[1733343992915,1.6659,3887.9,3886.3,0.3127]
[1733343993267,1.6659,3887.9,3886.4,0.02571855]
[1733343993413,1.83249054,3887.9,3886.8,1.2864]
[1733343993619,1.83249054,3887.9,3886.9,0.02571968]
[1733343993620,1.6659,3887.9,3886.9,0.02571968]
[1733343993819,1.6659,3887.9,3887.4,1.28617]
[1733343994359,1.6659,3887.9,3887.4,1.28619]
[1733343994562,1.6659,3887.9,3887.2,1.28627]
[1733343994868,1.6659,3887.9,3887.4,3.0]
[1733343995033,5.44e-06,3888.0,3887.8,1.28607]
[1733343995232,5.44e-06,3888.0,3887.9,17.582869]
[1733343995432,5.44e-06,3888.0,3887.9,17.522369]
[1733343995653,5.44e-06,3888.0,3887.9,15.979129]
[1733343996040,5.44e-06,3888.0,3887.9,26.514369]
[1733343997508,5.44e-06,3888.0,3887.9,15.976129]
[1733343997675,5.44e-06,3888.0,3886.9,0.3127]
[1733343997876,5.44e-06,3888.0,3887.5,1.54338]
[1733343998074,5.44e-06,3888.0,3887.6,1.54336]
[1733343998381,5.44e-06,3888.0,3887.2,0.02571558]
[1733343998585,5.44e-06,3888.0,3887.1,1.54356]
[1733343998903,5.44e-06,3888.0,3887.2,1.54352]
[1733343999055,5.44e-06,3888.0,3885.9,0.2572]
[1733343999056,5.44e-06,3888.0,3886.9,0.02571644]
[1733343999369,5.44e-06,3888.0,3885.3,0.50514761]
[1733343999370,1.5784,3887.9,3887.0,0.02571652]
[1733343999569,1.5784,3887.9,3886.9,1.56932837]
[1733343999904,1.5784,3887.9,3886.9,0.02571837]
[1733344000258,1.5784,3887.9,3887.3,1.54348]
[1733344000964,1.5784,3887.9,3887.3,1.54346]
[1733344001168,1.5784,3887.9,3887.1,1.54356]
[1733344001372,1.73624054,3887.9,3885.7,3.2572]
[1733344001571,1.73624054,3887.9,3886.6,1.54375]
[1733344001771,1.73624054,3887.9,3886.7,1.56942082]
[1733344001972,1.73624054,3887.9,3886.7,0.02572082]
[1733344002266,1.5784,3887.9,3887.0,1.54359]
[1733344002490,1.5784,3887.9,3887.1,1.56926082]
[1733344002801,1.5784,3887.9,3887.2,0.02572082]
[1733344002974,1.5784,3887.9,3886.8,0.55]
[1733344003176,1.5784,3887.9,3887.6,1.54335]
[1733344003564,1.5784,3887.9,3887.1,1.54353]
[1733344003901,5.44e-06,3888.0,3887.8,1.54328]
[1733344004200,5.44e-06,3888.0,3887.9,30.31214308]
[1733344004401,5.44e-06,3888.0,3887.9,29.44519]
[1733344004575,5.44e-06,3888.0,3887.9,25.80824]
[1733344005365,5.44e-06,3888.0,3887.9,26.35824]
[1733344005675,5.44e-06,3888.0,3887.9,14.08524]
[1733344006116,5.44e-06,3888.0,3887.9,35.553171]
[1733344006260,5.44e-06,3888.0,3887.9,35.810371]
[1733344006601,5.44e-06,3888.0,3887.9,35.260371]
[1733344007108,5.44e-06,3888.0,3887.9,35.810371]
[1733344007276,5.44e-06,3888.0,3887.9,35.553171]
[1733344009803,5.44e-06,3888.0,3887.9,35.003171]
[1733344010022,5.44e-06,3888.0,3887.9,28.761335]
[1733344010165,5.44e-06,3888.0,3887.9,1.54324]
[1733344010369,5.44e-06,3888.0,3887.6,1.54335]
[1733344010580,5.44e-06,3888.0,3886.9,0.54501268]
[1733344010581,5.44e-06,3888.0,3887.0,0.02571598]
[1733344010783,5.44e-06,3888.0,3887.4,1.54344]
[1733344010983,5.44e-06,3888.0,3886.9,2.06290711]
[1733344010984,5.44e-06,3888.0,3886.9,0.54501456]
[1733344011267,5.44e-06,3888.0,3887.2,1.54352]
[1733344011467,5.44e-06,3888.0,3887.3,0.02571751]
[1733344011706,5.44e-06,3888.0,3887.6,1.54336]
[1733344011863,5.44e-06,3888.0,3887.3,0.02571751]
[1733344012071,5.44e-06,3888.0,3887.5,1.5434]
[1733344012375,5.44e-06,3888.0,3886.9,2.08863476]
[1733344012376,5.44e-06,3888.0,3887.1,1.54353]
[1733344012681,5.44e-06,3888.0,3887.7,1.54332]
[1733344012877,5.44e-06,3888.0,3887.5,1.54339]
[1733344013406,5.44e-06,3888.0,3887.3,3.0]
[1733344013567,5.44e-06,3888.0,3887.9,1.54324]
[1733344013768,5.44e-06,3888.0,3887.9,4.54324]
[1733344014001,5.44e-06,3888.0,3887.9,14.54324]
[1733344014173,5.44e-06,3888.0,3887.9,12.99614]
[1733344014580,5.44e-06,3888.0,3887.9,15.99614]
[1733344015518,5.44e-06,3888.0,3887.9,14.54324]
[1733344016085,37.62180544,3889.0,3888.0,3.0]
[1733344016415,40.21782574,3889.0,3888.0,3.0]
[1733344016634,40.21782574,3889.0,3887.9,1.54324]
[1733344017192,40.21782574,3889.0,3888.0,1.28599]
[1733344018080,40.21782574,3889.0,3887.8,1.28606]
[1733344018390,0.2,3888.5,3886.8,1.2864]
[1733344018571,40.21782574,3889.0,3886.9,0.02571897]
[1733344018776,0.2,3888.8,3886.9,0.50091925]
[1733344018976,0.2,3888.8,3886.4,1.5612]
[1733344018977,0.2,3888.3,3886.8,1.28638]
[1733344019199,0.02572226,3888.7,3886.8,1.28638]
[1733344019200,1.6303,3888.2,3887.2,1.28627]
[1733344019416,1.6303,3888.2,3886.5,1.31218905]
[1733344019713,1.6303,3888.2,3886.5,0.02571905]
[1733344020075,1.6356,3888.0,3886.3,0.51844471]
[1733344020275,1.6356,3888.0,3885.9,0.02571965]
[1733344020479,1.6356,3888.0,3885.8,0.2572]
[1733344020480,1.6356,3887.7,3885.8,0.2572]
[1733344020817,1.7356,3887.5,3886.0,1.28666]
[1733344020978,1.6356,3887.3,3885.7,1.28676]
[1733344021180,0.22572226,3887.4,3885.8,1.28673]
[1733344021181,1.6356,3887.1,3885.8,1.28673]
[1733344021518,1.6356,3887.1,3886.1,1.28663]
[1733344021718,1.6356,3887.1,3885.9,1.28669]
[1733344022013,1.6356,3887.1,3886.0,1.28666]
[1733344022220,1.6356,3887.1,3886.1,1.2866]
[1733344022375,1.5213,3886.9,3885.8,1.2867]
[1733344022775,1.5213,3886.9,3885.3,0.02572827]
[1733344023009,1.5213,3886.9,3885.4,1.28686]
[1733344023220,1.5213,3886.9,3885.5,0.02572867]
[1733344023390,1.5213,3886.9,3885.7,3.0]
[1733344023727,1.5213,3886.9,3885.8,0.02572632]
[1733344024022,1.67343,3886.9,3886.1,1.28662]
[1733344024236,1.54702226,3886.8,3885.3,1.28689]
[1733344024378,1.54702226,3886.8,3885.3,0.0588298]
[1733344024379,0.2,3886.6,3885.3,0.0588298]
[1733344024578,1.5213,3886.5,3885.3,0.0588298]
[1733344024776,1.5213,3886.5,3885.6,1.2868]
[1733344025023,1.5213,3886.5,3885.3,0.0588298]
[1733344025324,1.5213,3887.3,3885.5,1.5949]
[1733344025622,1.67343,3887.3,3886.3,1.54388]
[1733344026033,1.6508,3887.7,3886.0,1.6234]
[1733344026187,1.6508,3887.7,3886.4,1.5438]
[1733344026525,1.6508,3887.7,3886.3,1.54387]
[1733344026697,1.6508,3887.7,3886.2,1.54391]
[1733344027193,1.6117,3887.4,3885.8,3.0]
[1733344027399,0.1,3887.7,3886.5,1.5438]
[1733344027400,1.6117,3887.2,3886.5,1.5438]
[1733344027780,1.6117,3887.2,3886.0,1.54398]
[1733344027985,0.02572226,3887.1,3886.2,1.54392]
[1733344028292,0.02572226,3887.1,3885.4,3.0]
[1733344028492,1.5238,3887.0,3884.9,0.02572926]
[1733344028725,1.5238,3886.8,3885.7,1.5441]
[1733344029305,0.1,3886.7,3884.8,0.52245132]
[1733344029504,1.5109,3886.5,3884.8,0.52245132]
[1733344029705,1.5109,3886.5,3885.1,1.54434]
[1733344029937,1.5109,3886.5,3885.2,1.5443]
[1733344030120,1.5109,3886.3,3885.0,1.54437]
[1733344030319,1.5755,3886.0,3884.1,1.54472]
[1733344030515,1.5755,3885.5,3883.8,1.54485]
[1733344030717,1.5755,3885.3,3883.1,0.02574043]
[1733344030953,0.02572226,3885.2,3883.1,0.02574043]
[1733344031262,1.5755,3884.4,3883.2,0.05886161]
[1733344031807,1.5755,3884.4,3883.4,1.54503]
[1733344032033,1.5755,3884.4,3883.5,0.05885706]
[1733344032034,1.6755,3884.4,3883.5,0.05885706]
[1733344032242,1.5978,3884.1,3883.5,0.05885706]
[1733344032648,1.5978,3884.1,3883.1,1.54513]
[1733344032860,0.51846311,3884.7,3881.2,1.569]
[1733344032861,1.5978,3883.7,3881.2,1.569]
[1733344033010,1.5978,3883.7,3881.3,0.02575309]
[1733344033206,1.62352226,3883.7,3881.8,1.54565]
[1733344033518,1.82352226,3883.7,3881.4,0.0257525]
[1733344033724,1.5969,3883.3,3882.2,1.54547]
[1733344033935,1.5969,3883.3,3881.6,1.54575]
[1733344034136,1.5969,3883.3,3882.5,1.54539]
[1733344034335,1.5969,3883.3,3882.5,1.54538]
[1733344034550,1.5969,3883.3,3881.5,0.02575438]
[1733344034711,1.5969,3883.3,3882.7,1.54531]
[1733344035043,1.5969,3883.3,3882.4,1.54539]
[1733344035250,1.5969,3883.3,3881.3,0.02575251]
[1733344035251,1.53922226,3883.2,3882.0,1.54559]
[1733344035454,1.53922226,3883.2,3881.5,1.54577]
[1733344035455,1.73922226,3883.2,3881.8,1.54566]
[1733344035659,1.83922226,3883.2,3881.0,0.02575781]
[1733344035953,1.83922226,3883.2,3882.0,1.54559]
[1733344036158,1.83922226,3883.2,3881.0,1.57173781]
[1733344036159,1.8135,3883.2,3882.1,1.54555]
[1733344036307,1.8135,3883.2,3881.5,1.54575]
[1733344036308,1.6069,3883.1,3881.5,1.54575]
[1733344036650,1.6069,3882.4,3880.7,1.43745037]
[1733344036853,1.6069,3882.2,3881.0,1.54598]
[1733344037010,1.61082226,3882.1,3881.0,1.54598]
[1733344037212,1.61082226,3882.1,3880.7,1.43745037]
[1733344037413,1.77618223,3882.1,3880.7,1.43745037]
[1733344037624,1.77618223,3882.1,3880.8,1.54605]
[1733344037828,1.77618223,3882.1,3881.0,1.54597]
[1733344038027,1.5851,3882.1,3881.1,0.02576504]
[1733344038226,1.5851,3882.1,3881.9,1.54562]
[1733344039256,1.7059,3883.6,3882.6,1.54532]
[1733344039550,1.6059,3883.5,3882.6,1.54532]
[1733344039846,1.6059,3883.5,3882.2,0.02575371]
[1733344040173,1.6059,3883.5,3882.0,3.0]
[1733344040453,1.6059,3883.5,3882.6,1.54531]
[1733344040658,1.6059,3883.5,3882.6,1.54532]
[1733344040825,1.6059,3883.5,3881.9,3.0]
[1733344041024,1.6059,3883.5,3882.2,3.0]
[1733344041339,1.6059,3883.5,3883.1,1.54515]
[1733344041649,1.6059,3883.5,3882.9,1.54522]
[1733344041954,1.6059,3883.5,3881.9,3.0]
[1733344042111,1.6059,3883.5,3883.0,1.54518]
[1733344042447,1.6059,3883.5,3882.9,1.54522]
[1733344042662,0.02572226,3883.4,3882.6,1.54532]
[1733344042823,1.5259,3883.3,3882.6,1.54532]
[1733344043212,1.5259,3883.3,3881.4,1.5458]
[1733344043510,1.5259,3883.3,3882.4,1.5454]
[1733344043711,1.5259,3883.3,3882.6,1.54535]
[1733344044052,1.5259,3883.3,3882.7,1.54531]
[1733344044356,1.5259,3883.3,3882.3,1.54543]
[1733344044559,1.5259,3883.3,3882.7,1.54531]
[1733344044714,1.5259,3883.3,3882.8,1.54527]
[1733344045155,1.5259,3883.3,3882.6,1.54535]
[1733344045362,1.5259,3883.3,3882.7,1.54531]
[1733344045853,1.5259,3883.3,3881.8,1.54567]
[1733344046054,1.5259,3883.3,3882.4,1.5454]
[1733344046224,1.5259,3883.3,3880.6,1.5133]
[1733344046225,1.6295,3883.1,3880.6,1.5133]
[1733344046427,1.65522226,3883.0,3881.6,1.54573]
[1733344046739,1.65522226,3883.0,3880.5,0.02575987]
[1733344046913,1.65522226,3883.0,3880.4,0.50856564]
[1733344046914,1.6295,3883.0,3882.0,1.54559]
[1733344047121,1.65522226,3883.0,3882.1,0.2572]
[1733344047449,1.6295,3882.8,3881.8,1.54567]
[1733344047610,1.6295,3882.8,3882.1,1.54554]
[1733344047810,1.6295,3882.8,3882.3,1.54545]
[1733344048102,1.6295,3882.8,3881.2,3.0257595]
[1733344048239,1.6295,3882.6,3880.9,1.54603]
[1733344048423,1.6295,3882.6,3881.9,1.54562]
[1733344048612,1.65522226,3882.5,3881.3,1.54584]
[1733344048813,1.65522226,3882.5,3880.9,1.43745037]
[1733344049017,1.6295,3882.5,3881.4,1.54582]
[1733344049217,1.6295,3882.5,3881.3,1.54584]
[1733344049218,1.65522226,3882.5,3881.3,1.54584]
[1733344049449,1.65522226,3882.5,3880.9,1.43745037]
[1733344049450,1.6295,3882.5,3881.5,1.54577]
[1733344049647,0.23174708,3882.4,3881.5,1.54577]
[1733344049848,1.6031,3882.3,3881.5,1.54577]
[1733344050162,1.6031,3882.3,3881.6,1.54574]
[1733344050457,1.6031,3882.3,3882.1,0.1]
[1733344050753,1.6031,3882.3,3880.9,1.43745037]
[1733344050960,0.2,3882.8,3880.9,1.43745037]
[1733344050961,0.2,3882.0,3880.9,1.43745037]
[1733344051158,1.5827,3881.7,3880.9,1.43745037]
[1733344051315,2.6306,3881.8,3880.9,1.43745037]
[1733344051316,2.402,3881.4,3880.9,1.43745037]
[1733344051512,1.5827,3881.3,3880.7,1.43745037]
[1733344051716,1.6827,3880.8,3879.0,1.54678]
[1733344051924,1.6827,3880.8,3878.6,1.54694]
[1733344052158,1.6827,3880.8,3878.0,0.02577738]
[1733344052325,1.6474,3880.2,3878.0,0.51012794]
[1733344052532,1.6474,3880.2,3877.7,1.54727]
[1733344052729,1.6474,3880.2,3877.5,1.551]
[1733344052730,1.6474,3880.2,3878.6,1.54694]
[1733344052946,1.6474,3879.8,3877.6,1.54734]
[1733344053263,1.6474,3879.8,3878.6,1.54691]
[1733344053557,0.51043665,3879.9,3878.6,1.54691]
[1733344053558,1.5553,3879.6,3878.6,1.54694]
[1733344054060,1.5553,3879.6,3878.7,1.5469]
[1733344054229,1.5553,3879.6,3878.3,3.0]
[1733344054433,1.5553,3879.6,3878.8,1.54686]
[1733344054632,1.5553,3879.6,3878.5,1.54698]
[1733344054633,1.5553,3879.6,3879.0,3.0]
[1733344054839,1.5553,3879.6,3879.5,1.54659]
[1733344056405,1.5553,3879.6,3879.1,1.54674]
[1733344056576,1.5553,3879.6,3878.8,1.54685]
[1733344056748,1.5553,3879.6,3879.3,1.54665]
[1733344057149,1.5553,3879.6,3878.9,3.0]
[1733344057150,1.5553,3879.6,3879.1,1.54674]
[1733344057390,1.5553,3879.6,3879.2,1.54671]
[1733344057695,1.5553,3879.6,3878.3,1.54706]
[1733344057696,1.5553,3879.6,3878.7,1.54688]
[1733344058191,1.5553,3879.6,3877.5,1.54738]
[1733344058390,1.5553,3879.6,3877.8,1.54723]
[1733344058599,1.5553,3879.6,3877.9,1.54719]
[1733344058754,1.5553,3879.6,3877.1,0.54436297]
[1733344058948,1.5553,3879.6,3878.2,1.54708]
[1733344059148,1.5504,3879.4,3878.0,1.54715]
[1733344060290,1.5504,3879.4,3878.1,1.54713]
[1733344060502,1.5504,3879.4,3877.0,0.50993177]
[1733344060503,1.5504,3879.4,3878.3,1.54705]
[1733344060704,1.5504,3879.4,3877.8,1.54726]
[1733344060705,1.5504,3879.4,3878.4,1.54702]
[1733344061064,1.5504,3879.4,3877.6,1.54734]
[1733344061265,0.3,3880.2,3877.0,3.50993177]
[1733344061266,1.657,3879.2,3877.8,3.0]
[1733344061488,1.657,3879.2,3877.5,1.54737]
[1733344061806,1.657,3879.2,3878.1,1.54714]
[1733344061976,4.0313,3879.1,3877.1,0.02578599]
[1733344062176,1.5105,3879.0,3876.8,1.54766]
[1733344062380,1.5105,3879.0,3876.2,2.05137844]
[1733344062381,1.5105,3878.7,3876.2,1.54788]
[1733344062580,2.5208,3878.8,3876.2,1.54788]
[1733344062581,0.51415204,3878.4,3876.2,1.54788]
[1733344062907,0.51415204,3878.4,3875.5,1.54816]
[1733344062908,1.6663,3878.0,3875.5,1.54816]
[1733344063111,1.6663,3878.0,3875.3,1.54826]
[1733344063331,2.5208,3878.1,3874.4,1.64859]
[1733344063332,1.6663,3877.3,3874.7,1.5485]
[1733344063536,1.84293,3877.2,3874.7,1.5485]
[1733344063704,1.6663,3877.0,3874.7,1.5485]
[1733344064032,1.6663,3877.0,3874.0,1.54875]
[1733344064033,2.3494,3876.1,3874.0,1.54875]
[1733344064192,2.3494,3876.1,3873.0,1.6584]
[1733344064193,1.6663,3876.0,3873.0,1.6584]
[1733344064386,1.6663,3875.8,3873.3,1.54904]
[1733344064592,2.3494,3875.4,3872.5,3.20778]
[1733344064822,1.6663,3875.3,3873.6,1.54892]
[1733344065160,1.6663,3875.3,3873.1,1.54913]
[1733344065161,1.6663,3875.3,3873.7,1.54887]
[1733344065430,1.6663,3875.3,3873.1,1.54913]
[1733344065431,1.6663,3875.3,3874.8,1.54845]
[1733344065633,1.6663,3875.3,3875.1,1.54833]
[1733344067800,1.6663,3875.3,3874.1,3.0]
[1733344067993,1.6663,3875.3,3873.9,3.0]
[1733344067994,1.6663,3875.3,3874.3,3.0]
[1733344068195,1.6663,3875.3,3873.9,3.0]
[1733344068196,1.6663,3875.3,3874.5,1.54858]
[1733344068449,1.6663,3875.3,3874.8,1.54844]
[1733344068609,1.6663,3875.3,3874.7,1.5485]
[1733344068808,1.6663,3875.3,3874.8,1.54844]
[1733344069007,1.6663,3875.3,3874.8,1.54846]
[1733344069207,1.6663,3875.3,3873.8,0.1632048]
[1733344069416,1.6663,3875.3,3874.1,1.5454]
[1733344069615,0.17663,3877.2,3875.6,1.54812]
[1733344069616,1.598,3875.8,3875.6,1.54812]
[1733344071362,1.6294,3877.1,3875.9,1.54801]
[1733344071669,1.6294,3877.1,3874.6,1.54852]
[1733344071670,1.6294,3876.9,3875.7,1.5481]
[1733344071996,1.6294,3876.9,3875.1,1.54833]
[1733344072127,1.6294,3876.9,3874.4,3.0]
[1733344072317,0.23136408,3877.0,3874.4,3.0]
[1733344072318,1.5987,3876.7,3874.4,3.0]
[1733344072517,0.55,3876.6,3874.6,3.0]
[1733344072715,1.5987,3876.7,3874.7,0.02580325]
[1733344072916,0.40482,3876.6,3875.9,1.548]
[1733344073121,1.5322,3876.5,3874.7,1.54849]
[1733344073460,1.5322,3876.5,3875.7,1.54808]
[1733344073818,1.5322,3876.5,3875.3,1.54825]
[1733344074023,1.5322,3876.5,3874.5,3.0]
[1733344074220,1.5322,3876.5,3875.5,1.54818]
[1733344074221,1.970852,3876.5,3875.5,1.54818]
[1733344074731,1.5322,3876.5,3874.7,1.5705]
[1733344074931,1.5322,3876.5,3876.3,1.54786]
[1733344075370,1.6119,3877.6,3875.9,3.0]
[1733344075587,1.6119,3877.6,3876.5,1.54776]
[1733344075937,1.6119,3877.6,3874.7,1.5705]
[1733344075938,1.6119,3877.6,3876.2,1.54787]
[1733344076137,0.16119,3877.5,3876.3,1.54785]
[1733344076374,0.16119,3877.5,3875.4,3.0]
[1733344076575,0.16119,3877.5,3874.8,1.64846]
[1733344076576,0.16119,3877.5,3875.6,1.54814]
[1733344076748,0.16119,3877.5,3876.5,1.54775]
[1733344077279,0.16119,3877.5,3876.6,1.54773]
[1733344077451,1.6119,3877.6,3875.9,0.02579537]
[1733344077654,1.6119,3877.6,3876.1,3.0]
[1733344077872,1.6119,3877.6,3877.4,1.54742]
[1733344079379,1.6119,3877.6,3877.5,1.54738]
[1733344079940,1.6119,3877.6,3876.8,3.0]
[1733344080140,1.77309,3877.6,3875.8,1.5406]
[1733344080342,1.77309,3877.6,3875.8,1.54806]
[1733344080545,1.6197,3877.4,3875.5,1.54817]
[1733344080744,1.6197,3877.4,3874.9,1.5406]
[1733344080989,0.55,3877.0,3875.0,1.54838]
[1733344081137,2.4311,3877.1,3874.3,1.7978]
[1733344081138,0.55,3876.6,3874.3,1.5406]
[1733344081338,0.55,3876.6,3874.2,1.54868]
[1733344081339,2.9811,3876.1,3873.3,0.49739031]
[1733344081654,2.12706298,3875.3,3873.4,1.54901]
[1733344081994,1.6197,3875.2,3873.5,1.54897]
[1733344082156,0.55,3875.1,3873.5,1.54897]
[1733344082337,1.5949,3874.9,3873.2,1.54907]
[1733344082687,1.5949,3874.5,3872.6,1.54931]
[1733344082883,1.5949,3874.5,3872.3,1.6555]
[1733344083261,0.55,3874.4,3872.6,1.54934]